fUSD/lending_fUSD_20250226
["ID","MTS","AMOUNT","RATE_DAILY","PERIOD"]
[354617645,1740595937919,-1176.81,0.00039178,14]
[354617647,1740595937929,-1686.11,0.00039178,14]
[354617649,1740595937939,-538.09,0.00039178,14]
[354617651,1740595937948,-547.24,0.00039178,14]
[354617653,1740595937958,-811.61,0.00039178,14]
[354617655,1740595937973,-1804.38,0.00039178,14]
[354617657,1740595937983,-969.08,0.00039178,14]
[354617659,1740595937993,-2234.9,0.00039178,14]
[354617661,1740595938004,-877.13,0.00039178,14]
[354617663,1740595938014,-582.64,0.00039178,14]
[354617665,1740595938024,-500.0,0.00039178,14]
[354617667,1740595938035,-500.0,0.00039178,14]
[354617669,1740595938045,-500.0,0.00039178,14]
[354617671,1740595938056,-1855.35,0.00039178,14]
[354617673,1740595938067,-1019.59,0.00039178,14]
[354617675,1740595938077,-2120.11,0.00039178,14]
[354617677,1740595938088,-1021.29,0.00039178,14]
[354617679,1740595938099,-1613.94,0.00039178,14]
[354617681,1740595938109,-572.27,0.00039178,14]
[354617683,1740595938119,-982.48,0.00039178,14]
[354617685,1740595938133,-1105.78,0.00039178,14]
[354617687,1740595938143,-2258.29,0.00039178,14]
[354617689,1740595938153,-500.0,0.00039178,14]
[354617691,1740595938164,-500.0,0.00039178,14]
[354617693,1740595938176,-1496.14,0.00039178,14]
[354617695,1740595938186,-782.62,0.00039178,14]
[354617698,1740595938196,-1313.98,0.00039178,14]
[354617700,1740595938206,-633.15,0.00039178,14]
[354617702,1740595938216,-500.0,0.00039178,14]
[354617704,1740595938227,-1614.67,0.00039178,14]
[354617706,1740595938237,-777.94,0.00039178,14]
[354617708,1740595938247,-1119.74,0.00039178,14]
[354617710,1740595938258,-630.05,0.00039178,14]
[354617712,1740595938269,-500.0,0.00039178,14]
[354617714,1740595938280,-1550.01,0.00039178,14]
[354617716,1740595938291,-500.0,0.00039178,14]
[354617718,1740595938301,-898.54,0.00039178,14]
[354617728,1740595938493,-986.29,0.00039178,14]
[354617729,1740595938520,-666.5,0.00039178,14]
[354617730,1740595938530,-1800.45,0.00039178,14]
[354617732,1740595938540,-1038.19,0.00039178,14]
[354617733,1740595938549,-722.35,0.00039178,14]
[354617736,1740595938560,-777.79,0.00039178,14]
[354617738,1740595938570,-583.31,0.00039178,14]
[354617740,1740595938581,-1016.47,0.00039178,14]
[354617742,1740595938592,-746.65,0.00039178,14]
[354617744,1740595938602,-529.67,0.00039178,14]
[354617746,1740595938612,-500.0,0.00039178,14]
[354617748,1740595938622,-500.0,0.00039178,14]
[354617750,1740595938636,-806.05,0.00039178,14]
[354617752,1740595938645,-886.7,0.00039178,14]
[354617754,1740595938655,-820.28,0.00039178,14]
[354617756,1740595938667,-1501.14,0.00039178,14]
[354617758,1740595938677,-500.0,0.00039178,14]
[354617760,1740595938687,-921.34,0.00039178,14]
[354617762,1740595938698,-500.0,0.00039178,14]
[354617764,1740595938707,-699.59,0.00039178,14]
[354617766,1740595938717,-1003.76,0.00039178,14]
[354617768,1740595938727,-500.0,0.00039178,14]
[354617770,1740595938736,-1495.63,0.00039178,14]
[354617772,1740595938746,-834.44,0.00039178,14]
[354617774,1740595938755,-831.3,0.00039178,14]
[354617776,1740595938764,-675.74,0.00039178,14]
[354617778,1740595938774,-917.03,0.00039178,14]
[354617780,1740595938785,-551.68,0.00039178,14]
[354617782,1740595938795,-681.62,0.00039178,14]
[354617784,1740595938805,-1958.47,0.00039178,14]
[354617786,1740595938814,-1067.6,0.00039178,14]
[354617788,1740595938824,-500.0,0.00039178,14]
[354617790,1740595938833,-636.63,0.00039178,14]
[354617792,1740595938843,-1007.51,0.00039178,14]
[354617794,1740595938852,-500.0,0.00039178,14]
[354617796,1740595938862,-826.67,0.00039178,14]
[354617797,1740595938872,-532.65,0.00039178,14]
[354617800,1740595938884,-1255.98,0.00039178,14]
[354617802,1740595938895,-500.0,0.00039178,14]
[354617804,1740595938905,-1084.65,0.00039178,14]
[354617805,1740595938914,-510.04,0.00039178,14]
[354617808,1740595938924,-1101.48,0.00039178,14]
[354617810,1740595938934,-634.72,0.00039178,14]
[354617812,1740595938944,-842.79,0.00039178,14]
[354617813,1740595938954,-861.46,0.00039178,14]
[354617815,1740595938966,-500.0,0.00039178,14]
[354617817,1740595938976,-765.4,0.00039178,14]
[354617820,1740595938986,-604.9,0.00039178,14]
[354617822,1740595938996,-1116.67,0.00039178,14]
[354617824,1740595939008,-500.0,0.00039178,14]
[354617826,1740595939019,-1441.7,0.00039178,14]
[354617828,1740595939028,-754.28,0.00039178,14]
[354617830,1740595939038,-929.23,0.00039178,14]
[354617832,1740595939048,-1403.66,0.00039178,14]
[354617834,1740595939057,-718.11,0.00039178,14]
[354617836,1740595939067,-1217.5,0.00039178,14]
[354617838,1740595939078,-1107.15,0.00039178,14]
[354617840,1740595939088,-1834.12,0.00039178,14]
[354617842,1740595939098,-902.19,0.00039178,14]
[354617844,1740595939107,-561.55,0.00039178,14]
[354617846,1740595939117,-565.94,0.00039178,14]
[354617848,1740595939127,-1996.52,0.00039178,14]
[354617850,1740595939140,-500.0,0.00039178,14]
[354617852,1740595939150,-563.43,0.00039178,14]
[354617854,1740595939159,-1467.19,0.00039178,14]
[354617856,1740595939170,-1321.18,0.00039178,14]
[354617858,1740595939181,-1902.42,0.00039178,14]
[354617860,1740595939191,-1140.97,0.00039178,14]
[354617862,1740595939201,-528.46,0.00039178,14]
[354617864,1740595939211,-500.0,0.00039178,14]
[354617866,1740595939220,-651.71,0.00039178,14]
[354617868,1740595939230,-1073.87,0.00039178,14]
[354617870,1740595939240,-1235.9,0.00039178,14]
[354617872,1740595939250,-583.0,0.00039178,14]
[354617874,1740595939260,-642.59,0.00039178,14]
[354617876,1740595939270,-500.0,0.00039178,14]
[354617878,1740595939280,-1162.07,0.00039178,14]
[354617880,1740595939290,-1175.03,0.00039178,14]
[354617883,1740595939300,-500.0,0.00039178,14]
[354617884,1740595939310,-1123.12,0.00039178,14]
[354617887,1740595939320,-1360.38,0.00039178,14]
[354617889,1740595939329,-990.04,0.00039178,14]
[354617891,1740595939339,-758.81,0.00039178,14]
[354617893,1740595939349,-500.0,0.00039178,14]
[354617894,1740595939358,-1858.11,0.00039178,14]
[354617896,1740595939367,-743.78,0.00039178,14]
[354617898,1740595939378,-836.2,0.00039178,14]
[354617900,1740595939390,-552.16,0.00039178,14]
[354617903,1740595939400,-957.01,0.00039178,14]
[354617904,1740595939409,-1949.61,0.00039178,14]
[354617907,1740595939418,-500.0,0.00039178,14]
[354617909,1740595939428,-1008.01,0.00039178,14]
[354617910,1740595939437,-1466.22,0.00039178,14]
[354617912,1740595939447,-1152.19,0.00039178,14]
[354617914,1740595939456,-2482.2,0.00039178,14]
[354617916,1740595939466,-1828.52,0.00039178,14]
[354617918,1740595939476,-527.63,0.00039178,14]
[354617920,1740595939486,-873.77,0.00039178,14]
[354617922,1740595939495,-1665.67,0.00039178,14]
[354617924,1740595939505,-500.0,0.00039178,14]
[354617926,1740595939515,-1934.6,0.00039178,14]
[354617928,1740595939525,-786.06,0.00039178,14]
[354617931,1740595939535,-1875.12,0.00039178,14]
[354617933,1740595939545,-1075.72,0.00039178,14]
[354617935,1740595939555,-554.85,0.00039178,14]
[354617936,1740595939565,-956.32,0.00039178,14]
[354617938,1740595939575,-1163.37,0.00039178,14]
[354617940,1740595939584,-500.0,0.00039178,14]
[354617942,1740595939594,-1037.67,0.00039178,14]
[354617944,1740595939603,-2110.11,0.00039178,14]
[354617947,1740595939613,-655.67,0.00039178,14]
[354617949,1740595939622,-519.01,0.00039178,14]
[354617951,1740595939634,-500.0,0.00039178,14]
[354617953,1740595939643,-754.12,0.00039178,14]
[354617955,1740595939653,-1595.01,0.00039178,14]
[354617957,1740595939662,-1351.39,0.00039178,14]
[354617959,1740595939671,-883.23,0.00039178,14]
[354617961,1740595939680,-978.64,0.00039178,14]
[354617963,1740595939689,-544.48,0.00039178,14]
[354617965,1740595939699,-1282.93,0.00039178,14]
[354617967,1740595939709,-1979.65,0.00039178,14]
[354617969,1740595939719,-500.0,0.00039178,14]
[354617971,1740595939729,-500.0,0.00039178,14]
[354617973,1740595939739,-1465.82,0.00039178,14]
[354617975,1740595939749,-500.0,0.00039178,14]
[354617977,1740595939758,-1395.89,0.00039178,14]
[354617979,1740595939768,-854.86,0.00039178,14]
[354617981,1740595939778,-1505.0,0.00039178,14]
[354617983,1740595939787,-924.09,0.00039178,14]
[354617985,1740595939798,-711.08,0.00039178,14]
[354617987,1740595939809,-552.43,0.00039178,14]
[354617989,1740595939818,-895.76,0.00039178,14]
[354617991,1740595939828,-500.0,0.00039178,14]
[354617993,1740595939837,-932.59,0.00039178,14]
[354617995,1740595939847,-441.60843106,0.00039178,14]
[354617997,1740595939856,-1558.86,0.00039178,14]
[354617999,1740595939866,-912.19,0.00039178,14]
[354618001,1740595939875,-551.46,0.00039178,14]
[354618003,1740595939886,-3271.55,0.00039178,14]
[354618005,1740595939896,-3117.32,0.00039178,14]
[354618007,1740595939907,-500.0,0.00039178,14]
[354618009,1740595939918,-896.05,0.00039178,14]
[354618011,1740595939928,-1469.5,0.00039178,14]
[354618013,1740595939938,-500.0,0.00039178,14]
[354618015,1740595939949,-500.0,0.00039178,14]
[354618017,1740595939960,-1970.34,0.00039178,14]
[354618019,1740595939971,-1219.67,0.00039178,14]
[354618021,1740595939982,-500.0,0.00039178,14]
[354618023,1740595939991,-500.0,0.00039178,14]
[354618025,1740595940003,-1258.23,0.00039178,14]
[354618027,1740595940016,-1003.98,0.00039178,14]
[354618029,1740595940025,-802.71,0.00039178,14]
[354618031,1740595940035,-1048.22,0.00039178,14]
[354618033,1740595940045,-500.0,0.00039178,14]
[354618035,1740595940055,-12754.69,0.00039178,14]
[354618037,1740595940064,-500.0,0.00039178,14]
[354618039,1740595940073,-760.48,0.00039178,14]
[354618041,1740595940084,-1559.74,0.00039178,14]
[354618043,1740595940094,-1039.17,0.00039178,14]
[354618045,1740595940104,-968.47,0.00039178,14]
[354618047,1740595940113,-975.3,0.00039178,14]
[354618049,1740595940123,-884.61,0.00039178,14]
[354618051,1740595940134,-677.65,0.00039178,14]
[354618053,1740595940144,-581.51,0.00039178,14]
[354618055,1740595940153,-559.35,0.00039178,14]
[354618057,1740595940163,-500.0,0.00039178,14]
[354618059,1740595940174,-1096.63,0.00039178,14]
[354618061,1740595940185,-1472.3,0.00039178,14]
[354618063,1740595940200,-1068.0,0.00039178,14]
[354618065,1740595940220,-882.85,0.00039178,14]
[354618068,1740595940232,-1708.56,0.00039178,14]
[354618069,1740595940241,-505.62,0.00039178,14]
[354618071,1740595940251,-966.9,0.00039178,14]
[354618074,1740595940261,-1141.53,0.00039178,7]
[354618076,1740595940270,-1382.5,0.00039178,14]
[354618078,1740595940279,-811.04,0.00039178,14]
[354618080,1740595940288,-669.94,0.00039178,14]
[354618082,1740595940297,-691.77,0.00039178,14]
[354618084,1740595940306,-530.0,0.00039178,14]
[354618086,1740595940315,-1910.93,0.00039178,14]
[354618088,1740595940325,-500.0,0.00039178,14]
[354618090,1740595940334,-500.0,0.00039178,14]
[354618092,1740595940344,-874.49,0.00039178,14]
[354618094,1740595940354,-776.22,0.00039178,14]
[354618096,1740595940363,-2493.41,0.00039178,14]
[354618098,1740595940373,-811.0,0.00039178,14]
[354618100,1740595940382,-2143.28,0.00039178,14]
[354618102,1740595940392,-2617.36,0.00039178,14]
[354618104,1740595940401,-1621.78,0.00039178,14]
[354618106,1740595940410,-2319.53,0.00039178,14]
[354618108,1740595940420,-500.0,0.00039178,14]
[354618110,1740595940429,-500.0,0.00039178,14]
[354618112,1740595940438,-529.04,0.00039178,14]
[354618114,1740595940447,-1163.2,0.00039178,14]
[354618116,1740595940456,-768.45,0.00039178,14]
[354618118,1740595940465,-500.0,0.00039178,14]
[354618120,1740595940474,-500.0,0.00039178,14]
[354618122,1740595940484,-500.0,0.00039178,14]
[354618124,1740595940493,-288.16,0.00039178,14]
[354618126,1740595940502,-911.1,0.00039178,14]
[354618128,1740595940511,-1280.98,0.00039178,14]
[354618130,1740595940520,-2143.46,0.00039178,14]
[354618131,1740595940529,-500.0,0.00039178,14]
[354618133,1740595940539,-1855.75,0.00039178,14]
[354618136,1740595940548,-873.58,0.00039178,14]
[354618138,1740595940557,-939.46,0.00039178,14]
[354618140,1740595940567,-500.0,0.00039178,14]
[354618142,1740595940576,-500.0,0.00039178,14]
[354618144,1740595940585,-500.0,0.00039178,14]
[354618146,1740595940595,-1902.32,0.00039178,14]
[354618148,1740595940605,-1142.01,0.00039178,14]
[354618150,1740595940614,-938.37,0.00039178,14]
[354618152,1740595940623,-800.79,0.00039178,14]
[354618154,1740595940633,-512.47,0.00039178,14]
[354618156,1740595940642,-2507.28,0.00039178,2]
[354618158,1740595940651,-500.0,0.00039178,14]
[354618160,1740595940660,-731.9,0.00039178,14]
[354618162,1740595940670,-1981.71,0.00039178,14]
[354618164,1740595940679,-1276.51,0.00039178,14]
[354618166,1740595940688,-708.24,0.00039178,14]
[354618168,1740595940697,-500.0,0.00039178,14]
[354618170,1740595940706,-2733.74,0.00039178,14]
[354618172,1740595940715,-2252.01,0.00039178,14]
[354618174,1740595940724,-891.14,0.00039178,14]
[354618176,1740595940734,-500.0,0.00039178,14]
[354618177,1740595940743,-552.36,0.00039178,14]
[354618180,1740595940753,-630.12,0.00039178,14]
[354618181,1740595940762,-500.0,0.00039178,14]
[354618183,1740595940771,-642.98,0.00039178,14]
[354618185,1740595940781,-1991.31,0.00039178,14]
[354618187,1740595940790,-1022.27,0.00039178,14]
[354618189,1740595940800,-1294.07,0.00039178,14]
[354618191,1740595940809,-1853.21,0.00039178,14]
[354618193,1740595940819,-630.96,0.00039178,14]
[354618196,1740595940829,-1573.28,0.00039178,14]
[354618198,1740595940838,-2426.57,0.00039178,14]
[354618199,1740595940848,-2490.78,0.00039178,14]
[354618202,1740595940857,-1150.32,0.00039178,14]
[354618204,1740595940866,-715.02,0.00039178,14]
[354618206,1740595940875,-3484.94,0.00039178,14]
[354618207,1740595940885,-500.0,0.00039178,14]
[354618209,1740595940895,-2771.33,0.00039178,14]
[354618211,1740595940904,-500.0,0.00039178,14]
[354618213,1740595940914,-1596.62,0.00039178,14]
[354618215,1740595940923,-1876.78,0.00039178,14]
[354618217,1740595940932,-1560.4,0.00039178,14]
[354618220,1740595940941,-6192.85,0.00039178,14]
[354618221,1740595940950,-647.32,0.00039178,14]
[354618223,1740595940960,-1726.29,0.00039178,14]
[354618226,1740595940974,-1676.26,0.00039178,14]
[354618227,1740595940984,-2725.95,0.00039178,14]
[354618229,1740595940993,-563.72,0.00039178,14]
[354618231,1740595941003,-944.42,0.00039178,14]
[354618234,1740595941016,-3837.57,0.00039178,14]
[354618236,1740595941026,-1361.35,0.00039178,14]
[354618238,1740595941036,-1302.57,0.00039178,14]
[354618239,1740595941045,-688.53,0.00039178,14]
[354618241,1740595941055,-11693.75,0.00039178,14]
[354618243,1740595941064,-861.86,0.00039178,14]
[354618245,1740595941074,-2812.52,0.00039178,14]
[354618247,1740595941084,-3063.11,0.00039178,14]
[354618249,1740595941093,-1132.99,0.00039178,14]
[354618251,1740595941103,-2332.02,0.00039178,14]
[354618253,1740595941112,-3032.5,0.00039178,14]
[354618255,1740595941122,-1403.52,0.00039178,14]
[354618257,1740595941132,-2514.92,0.00039178,14]
[354618259,1740595941142,-840.17,0.00039178,14]
[354618261,1740595941151,-3285.15,0.00039178,14]
[354618263,1740595941160,-1217.25,0.00039178,14]
[354618265,1740595941169,-2864.92,0.00039178,14]
[354618267,1740595941178,-829.58,0.00039178,14]
[354618268,1740595941187,-521.32,0.00039178,14]
[354618270,1740595941197,-1548.49,0.00039178,14]
[354618272,1740595941207,-1797.4,0.00039178,14]
[354618274,1740595941216,-3783.79,0.00039178,14]
[354618276,1740595941225,-1141.09,0.00039178,14]
[354618278,1740595941236,-577.91,0.00039178,14]
[354618280,1740595941245,-6297.9,0.00039178,14]
[354618282,1740595941254,-2194.13,0.00039178,14]
[354618284,1740595941265,-2625.14,0.00039178,14]
[354618286,1740595941274,-1289.77,0.00039178,14]
[354618288,1740595941283,-564.43,0.00039178,14]
[354618290,1740595941292,-2622.68,0.00039178,14]
[354618292,1740595941301,-3149.85,0.00039178,14]
[354618294,1740595941311,-806.4,0.00039178,14]
[354618296,1740595941320,-2632.85,0.00039178,14]
[354618298,1740595941330,-2112.2,0.00039178,14]
[354618300,1740595941339,-3833.32,0.00039178,14]
[354618302,1740595941348,-1648.8,0.00039178,14]
[354618304,1740595941357,-5487.93,0.00039178,14]
[354618306,1740595941367,-2311.59,0.00039178,14]
[354618308,1740595941376,-974.58,0.00039178,14]
[354618310,1740595941388,-565.43,0.00039178,14]
[354618312,1740595941397,-1343.0,0.00039178,14]
[354618314,1740595941407,-11841.49,0.00039178,14]
[354618316,1740595941417,-567.13,0.00039178,14]
[354618318,1740595941426,-3413.54,0.00039178,14]
[354618320,1740595941435,-1833.27,0.00039178,14]
[354618322,1740595941444,-995.26,0.00039178,14]
[354618324,1740595941455,-3517.26,0.00039178,14]
[354618326,1740595941464,-1238.69,0.00039178,14]
[354618328,1740595941473,-7439.57,0.00039178,14]
[354618330,1740595941483,-1700.63,0.00039178,14]
[354618332,1740595941492,-2752.94,0.00039178,14]
[354618334,1740595941501,-4507.25,0.00039178,14]
[354618336,1740595941510,-1862.26,0.00039178,14]
[354618338,1740595941519,-1154.79,0.00039178,14]
[354618340,1740595941529,-639.34,0.00039178,14]
[354618342,1740595941538,-1572.85,0.00039178,14]
[354618344,1740595941547,-3421.4,0.00039178,14]
[354618346,1740595941555,-1778.87,0.00039178,14]
[354618348,1740595941564,-1616.96,0.00039178,14]
[354618350,1740595941573,-696.16,0.00039178,14]
[354618352,1740595941582,-9182.73,0.00039178,14]
[354618354,1740595941591,-6709.93,0.00039178,14]
[354618356,1740595941600,-683.41,0.00039178,14]
[354618358,1740595941610,-682.72,0.00039178,14]
[354618360,1740595941619,-4316.65,0.00039178,14]
[354618362,1740595941628,-682.23,0.00039178,14]
[354618364,1740595941639,-546.58,0.00039178,14]
[354618366,1740595941648,-3317.95,0.00039178,14]
[354618368,1740595941657,-1576.59,0.00039178,14]
[354618370,1740595941666,-604.02,0.00039178,14]
[354618371,1740595941675,-500.0,0.00039178,14]
[354618374,1740595941685,-876.15,0.00039178,14]
[354618375,1740595941694,-1898.38,0.00039178,14]
[354618377,1740595941703,-3418.9,0.00039178,14]
[354618379,1740595941713,-749.16,0.00039178,14]
[354618381,1740595941722,-2938.03,0.00039178,14]
[354618383,1740595941732,-1228.02,0.00039178,14]
[354618385,1740595941741,-2258.95,0.00039178,14]
[354618387,1740595941750,-1052.77,0.00039178,14]
[354618389,1740595941759,-500.0,0.00039178,14]
[354618391,1740595941768,-932.43,0.00039178,14]
[354618393,1740595941777,-1087.18,0.00039178,14]
[354618415,1740595941978,-3770.5,0.00039178,14]
[354618417,1740595941988,-4443.37,0.00039178,14]
[354618419,1740595941998,-4370.98,0.00039178,14]
[354618421,1740595942010,-841.55,0.00039178,14]
[354618423,1740595942020,-1077.8,0.00039178,14]
[354618425,1740595942030,-1662.55,0.00039178,14]
[354618427,1740595942039,-1684.75,0.00039178,14]
[354618429,1740595942049,-732.3,0.00039178,14]
[354618431,1740595942059,-669.42,0.00039178,14]
[354618433,1740595942068,-2153.43,0.00039178,14]
[354618435,1740595942080,-2455.03,0.00039178,14]
[354618437,1740595942089,-500.0,0.00039178,14]
[354618439,1740595942098,-555.94,0.00039178,14]
[354618441,1740595942107,-8707.22,0.00039178,14]
[354618442,1740595942117,-661.77,0.00039178,14]
[354618444,1740595942126,-1962.86,0.00039178,14]
[354618446,1740595942137,-14121.36,0.00039178,14]
[354618449,1740595942147,-1465.58,0.00039178,14]
[354618450,1740595942156,-3029.66,0.00039178,14]
[354618453,1740595942167,-429.15202901,0.00039178,14]
[354618455,1740595942176,-3158.55,0.00039178,14]
[354618456,1740595942185,-1124.82,0.00039178,14]
[354618459,1740595942195,-677.06,0.00039178,14]
[354618460,1740595942205,-1234.59,0.00039178,14]
[354618462,1740595942215,-1087.29,0.00039178,14]
[354618464,1740595942224,-1184.83,0.00039178,14]
[354618466,1740595942234,-766.23,0.00039178,14]
[354618469,1740595942243,-1001.3,0.00039178,14]
[354618470,1740595942252,-617.69,0.00039178,14]
[354618472,1740595942262,-1731.67,0.00039178,14]
[354618474,1740595942271,-527.05,0.00039178,14]
[354618476,1740595942280,-3138.97,0.00039178,14]
[354618478,1740595942290,-1244.63,0.00039178,14]
[354618480,1740595942299,-850.11,0.00039178,14]
[354618482,1740595942310,-2099.68,0.00039178,14]
[354618484,1740595942319,-1394.32,0.00039178,14]
[354618486,1740595942328,-1086.92,0.00039178,14]
[354618488,1740595942337,-1256.63,0.00039178,14]
[354618490,1740595942346,-1776.24,0.00039178,14]
[354618492,1740595942356,-3802.94,0.00039178,14]
[354618494,1740595942365,-772.03,0.00039178,14]
[354618496,1740595942375,-500.0,0.00039178,14]
[354618498,1740595942387,-773.62,0.00039178,14]
[354618500,1740595942397,-666.36,0.00039178,14]
[354618502,1740595942407,-1317.17,0.00039178,14]
[354618504,1740595942416,-500.0,0.00039178,14]
[354618506,1740595942427,-500.0,0.00039178,14]
[354618507,1740595942436,-300.99150746,0.00039178,14]
[354618508,1740595942446,-2961.3,0.00039178,14]
[354618509,1740595942455,-4383.06,0.00039178,14]
[354618510,1740595942465,-1507.85,0.00039178,14]
[354618511,1740595942475,-1264.32,0.00039178,14]
[354618512,1740595942485,-1388.89,0.00039178,14]
[354618513,1740595942494,-556.93,0.00039178,14]
[354618514,1740595942504,-561.98,0.00039178,14]
[354618515,1740595942513,-3155.81,0.00039178,14]
[354618516,1740595942525,-2270.77,0.00039178,14]
[354618517,1740595942535,-500.0,0.00039194,120]
[354618518,1740595942544,-500.0,0.00039302,120]
[354618519,1740595942553,-200.0,0.00039393,120]
[354618520,1740595942562,-291.57052636,0.00039443,2]
[354618521,1740595942572,-2142.0,0.00039452,14]
[354618522,1740595942581,-1232.0,0.00039452,14]
[354618523,1740595942590,-151.0,0.00039452,14]
[354618525,1740595942600,-206.651773,0.00039452,14]
[354618527,1740595942609,-206.651773,0.00039452,14]
[354618529,1740595942619,-308.002646,0.00039452,14]
[354618531,1740595942629,-308.002646,0.00039452,14]
[354618533,1740595942641,-152.57917,0.00039452,14]
[354618535,1740595942651,-262.007382,0.00039452,14]
[354618537,1740595942661,-672.636069,0.00039452,14]
[354618539,1740595942671,-500.0,0.00039452,14]
[354618541,1740595942680,-676.71,0.00039452,14]
[354618543,1740595942690,-1501.590989,0.00039452,14]
[354618545,1740595942700,-870.39,0.00039452,14]
[354618547,1740595942710,-1069.27,0.00039452,14]
[354618549,1740595942720,-814.89,0.00039452,14]
[354618551,1740595942730,-1090.2,0.00039452,14]
[354618553,1740595942740,-500.0,0.00039452,14]
[354618555,1740595942750,-500.0,0.00039452,14]
[354618557,1740595942760,-1150.39,0.00039452,14]
[354618559,1740595942769,-500.0,0.00039452,14]
[354618561,1740595942778,-500.0,0.00039452,14]
[354618563,1740595942788,-701.36,0.00039452,14]
[354618565,1740595942798,-841.82,0.00039452,14]
[354618567,1740595942808,-500.0,0.00039452,14]
[354618569,1740595942820,-670.19,0.00039452,14]
[354618571,1740595942830,-300.0,0.00039452,14]
[354618573,1740595942840,-1844.05,0.00039452,14]
[354618575,1740595942850,-500.0,0.00039452,14]
[354618577,1740595942859,-747.92,0.00039452,14]
[354618579,1740595942869,-835.83,0.00039452,14]
[354618581,1740595942878,-738.6,0.00039452,14]
[354618583,1740595942891,-1533.87,0.00039452,14]
[354618585,1740595942900,-1414.25,0.00039452,14]
[354618587,1740595942910,-865.08,0.00039452,14]
[354618589,1740595942920,-633.98,0.00039452,14]
[354618591,1740595942930,-600.33,0.00039452,14]
[354618593,1740595942940,-500.0,0.00039452,14]
[354618595,1740595942950,-580.36,0.00039452,14]
[354618597,1740595942961,-742.35,0.00039452,14]
[354618599,1740595942974,-732.49,0.00039452,14]
[354618601,1740595942984,-527.1,0.00039452,14]
[354618603,1740595942993,-500.0,0.00039452,14]
[354618605,1740595943002,-935.03,0.00039452,14]
[354618607,1740595943014,-543.41,0.00039452,14]
[354618609,1740595943024,-581.31,0.00039452,14]
[354618611,1740595943035,-689.42,0.00039452,14]
[354618613,1740595943045,-689.49,0.00039452,14]
[354618615,1740595943057,-571.34,0.00039452,14]
[354618617,1740595943067,-696.87,0.00039452,14]
[354618619,1740595943076,-1290.39,0.00039452,14]
[354618621,1740595943086,-546.44,0.00039452,14]
[354618623,1740595943097,-500.0,0.00039452,14]
[354618625,1740595943106,-594.86,0.00039452,14]
[354618627,1740595943117,-635.18,0.00039452,14]
[354618629,1740595943127,-858.4,0.00039452,14]
[354618631,1740595943140,-617.43,0.00039452,14]
[354618633,1740595943151,-500.0,0.00039452,14]
[354618635,1740595943161,-665.21,0.00039452,14]
[354618637,1740595943170,-500.0,0.00039452,14]
[354618639,1740595943180,-1850.02,0.00039452,14]
[354618641,1740595943190,-1161.63,0.00039452,14]
[354618643,1740595943200,-1036.04,0.00039452,14]
[354618645,1740595943209,-2240.29,0.00039452,14]
[354618647,1740595943219,-396.38472598,0.00039452,14]
[354618649,1740595943228,-608.93,0.00039452,14]
[354618651,1740595943238,-500.0,0.00039452,14]